Cogmind - Beta 15 @@@ ROGUE MODE // 2025.05.30 @ 15:38:31 Player: dorusv Result: Destroyed by L-31 Rogue with Katana Performance ------------- Evolutions (2) 1000 Regions Visited (3) 600 Robots Destroyed (41) 205 Value Destroyed (1129) 1129 Prototype IDs (6) 120 Alien Tech Used (0) 0 Bonus (0) 0 TOTAL SCORE: 3054 Bonus ------- None Cogmind --------- Core Integrity 0/550 Matter 192/300 Energy 85/100 System Corruption 10% Temperature Cool (0) Movement Core (50) Location -8/Materials Parts ------- > --- POWER (2) -------- (None) > --- PROPULSION (4) --- (None) > --- UTILITY (2) ------ (None) > --- WEAPON (3) ------- Katana > --- INVENTORY (5) ---- Advanced Beam Cannon Peak State ------------ > --- POWER ------------ Heavy Ion Engine Heavy Ion Engine > --- PROPULSION ------- Aluminum Leg Titanium Leg Flight Unit Cesium-ion Thruster > --- UTILITY ---------- Thermal Generator Small Storage Unit > --- WEAPON ----------- Heavy EM Pulse Gun Heavy EM Shotgun Advanced Beam Cannon > --- INVENTORY -------- Heavy Ion Engine Light Treads Hardened Light Armor Plating Spread Laser Spread Laser Improved Assault Rifle Katana [Rating: 28] Favorites ----------- Power Heavy Ion Engine Engine Heavy Ion Engine Propulsion Flight Unit Treads Light Treads Leg Aluminum Leg Flight Unit Flight Unit Utility Small Storage Unit Device Thermal Generator Storage Small Storage Unit Protection Hardened Light Armor Plating Weapon Heavy EM Shotgun Energy Gun Heavy EM Shotgun Energy Cannon Advanced Beam Cannon Ballistic Gun Assault Rifle Slashing Weapon Katana Build | -11 -10 -9 -8 ------- Run | Yrd Mat Mat Mat Slots Evolved 4 | . . 2 2 Power 1 | . . . 1 Propulsion 2 | . . 2 . Utility . | . . . . Weapon 1 | . . . 1 Parts Attached 41 | 7 9 15 10 Power 5 | 1 1 1 2 Engine 5 | 1 1 1 2 Core . | . . . . Reactor . | . . . . Propulsion 18 | 2 6 5 5 Treads 1 | . . 1 . Leg 7 | 2 . 1 4 Wheel . | . . . . Hover . | . . . . Flight 10 | . 6 3 1 Utility 5 | 2 . 3 . Device 2 | 1 . 1 . Storage 2 | 1 . 1 . Processor . | . . . . Hackware . | . . . . Protection 1 | . . 1 . Artifact . | . . . . Weapon 13 | 2 2 6 3 Energy Gun 8 | . 2 5 1 Energy Cannon 1 | . . 1 . Ballistic Gun 3 | 2 . . 1 Ballistic Cannon . | . . . . Launcher . | . . . . Special Weapon . | . . . . Impact Weapon . | . . . . Slashing Weapon 1 | . . . 1 Piercing Weapon . | . . . . Special Melee Weapon . | . . . . Unidentified Prototypes 4 | . . 3 1 Corrupted Parts 2 | . . . 2 System Corruption 10 | . . . 10 Parts Lost 26 | . 3 6 17 Power 3 | . . . 3 Propulsion 14 | . 2 5 7 Utility 3 | . 1 . 2 Weapon 6 | . . 1 5 Highest Loss Streak 14 | . 2 2 14 To Critical Strikes . | . . . . Average Backups 6 | 4 5 7 6 Power 1 | . 1 2 1 Propulsion 1 | 2 3 . . Utility . | . . . . Weapon 2 | . . 3 3 Tool/Special . | . . . . Unused Backups 9 | . 7 2 . Power 4 | . 2 2 . Propulsion 4 | . 4 . . Utility . | . . . . Weapon 1 | . 1 . . Tool/Special . | . . . . Average Slot Usage (%) 79 | . 75 79 84 Engine 12 | . 14 11 15 Leg 6 | . 4 3 15 Flight 21 | . 23 25 12 Device 5 | . 1 6 6 Storage 8 | . 2 10 8 Energy Gun 17 | . 22 16 12 Energy Cannon 4 | . . 4 7 Ballistic Gun 1 | . 5 . . Peak Build Rating 28 | 9 9 21 28 Average Rating 14 | 5 7 15 23 On Entrance 8 | . 9 7 18 Naked Turns 1 | . . . 1 Heaviest Build 39 | 14 14 28 39 Greatest Support 47 | 20 20 20 47 Greatest Overweight (x) 6 | . 2 6 3 Average Overweight (x) 1 | . . 1 1 Largest Inventory Capacity 8 | 8 8 8 8 Average Capacity 7 | 7 5 7 7 Most Carried 8 | 6 7 8 8 Average Carried 6 | 4 5 7 6 Final Capacity 8 | 8 5 8 5 Final Carried 7 | 6 5 7 1 Class Distribution -------------------- 75% | Mutant 13% | Scavenger-Mutant 7% | Gunner 3% | Scavenger-Sprinter Dominant Class ---------------- Mutant | -10/Materials Mutant | -9/Materials Mutant | -8/Materials Resources | -11 -10 -9 -8 ----------- Run | Yrd Mat Mat Mat Matter Collected 670 | 237 170 152 111 Remotely . | . . . . Salvage Created 1367 | 115 179 528 545 Parts 90 | 3 27 36 24 Haulers Intercepted 1 | . . 1 . Recyclers Shooed 2 | . . 1 1 Parts Field Recycled . | . . . . Retrieved Matter . | . . . . Parts Self-Destructed . | . . . . Prevented . | . . . . Kills | -11 -10 -9 -8 ------- Run | Yrd Mat Mat Mat Combat Hostiles Destroyed 31 | . 13 8 10 Guns 25 | . 13 6 6 Cannons 3 | . . 1 2 AOE 2 | . . . 2 Classes Destroyed 10 | 2 3 5 . Worker 4 | . . 2 2 Builder 1 | . . 1 . Tunneler 1 | 1 . . . Hauler 1 | . . 1 . Recycler 1 | 1 . . . Watcher 2 | . 1 1 . Swarmer 12 | . 12 . . Grunt 12 | . 1 4 7 Duelist 3 | . . 1 2 Sentry 4 | . . 3 1 Best Kill Streak 6 | 2 5 4 6 Combat Bots Only 5 | . 5 2 5 Max Kills in Single Turn 2 | 1 2 1 2 Gunslinging . | . . . . Exploded 2 | . . . 2 Melee . | . . . . Uniques/NPCs Destroyed . | . . . . Combat | -11 -10 -9 -8 -------- Run | Yrd Mat Mat Mat Hostile Shots Fired 216 | . 73 34 109 Missed 58 | . 20 12 26 Hits 158 | . 53 22 83 Melee 23 | . . 1 22 Projectile 135 | . 53 21 61 Critical Strikes 2 | . . . 2 Damage Taken 2828 | . 438 403 1987 Core 726 | . 119 29 578 Absorbed by Shields . | . . . . Core Remaining (%) 81 | 100 52 92 . Volleys Fired 87 | 8 19 23 37 Largest 3 | 2 2 2 3 Hottest 163 | 40 130 130 163 Shots Fired 160 | 16 38 46 60 Gun 143 | 16 38 38 51 Cannon 17 | . . 8 9 Launcher . | . . . . Special . | . . . . Kinetic 36 | 16 10 . 10 Thermal 50 | . 28 10 12 Explosive . | . . . . Electromagnetic 74 | . . 36 38 Robot Hit Streak 27 | 4 5 27 11 Robot Miss Streak 12 | 1 12 8 4 Penetration Max . | . . . . Secondary Targets 1 | . 1 . . Max Gunslinging Chain 1 | . 1 . . Shots Hit Robots 117 | 12 26 37 42 Core Hits 91 | 4 33 23 31 Critical Kills . | . . . . Critical Parts Destroyed . | . . . . Critical Strikes 2 | . . . 2 Corrupt 2 | . . . 2 Melee Attacks 2 | . . . 2 Impact . | . . . . Slashing 2 | . . . 2 Piercing . | . . . . Sneak Attacks . | . . . . Combat Hostiles . | . . . . Follow-up Attacks . | . . . . Damage Inflicted 2376 | 116 329 735 1196 Guns 1618 | 116 329 540 633 Cannons 164 | . . 82 82 Explosions 581 | . . 107 474 Melee . | . . . . Ramming 13 | . . 6 7 Kinetic 324 | 116 69 . 139 Thermal 1067 | . 260 197 610 Explosive . | . . . . Electromagnetic 972 | . . 532 440 Impact . | . . . . Slashing . | . . . . Piercing . | . . . . Highest Corruption 10 | . . . 10 Average Corruption 5 | . . . 5 Corruption Purged . | . . . . Corruption Blocked . | . . . . Effects 4 | . . . 4 Message Errors 1 | . . . 1 Heat Flow Errors 1 | . . . 1 Energy Discharges 1 | . . . 1 Weapon Failures 1 | . . . 1 Overload Shots . | . . . . Overflow Damage 57 | . . 6 51 Projectiles . | . . . . Explosions 57 | . . 6 51 Melee . | . . . . Knockbacks . | . . . . Impact . | . . . . Kinetic . | . . . . Secondary . | . . . . Self-Inflicted Damage 228 | . . 78 150 Shots 5 | . . 2 3 Rammed 1 | . . 1 . Targets Rammed 4 | . . 2 2 Kicked 3 | . . 1 2 Crushed . | . . . . Highest Temperature 619 | . 318 204 619 Average Temperature 183 | . 113 62 323 Received Heat Transfer 654 | . 18 105 531 Effects 30 | . 1 . 29 Shutdowns 8 | . . . 8 Energy Bleed 5 | . 1 . 4 Interference 2 | . . . 2 Matter Decay 2 | . . . 2 Short Circuit 1 | . . . 1 Damage (minor) 4 | . . . 4 Damage (major) 6 | . . . 6 Damage (core) 2 | . . . 2 Siege Activations . | . . . . Martial Activations . | . . . . Shielding Activations . | . . . . Robots Disrupted . | . . . . Combat Hostiles . | . . . . Robots Corrupted 1 | . . 1 . Combat Hostiles 1 | . . 1 . Parts Fried 5 | . . 4 1 Impact Corruptions . | . . . . Robots Melted . | . . . . Combat Hostiles . | . . . . Parts Melted . | . . . . Heat Transferred 1370 | . 315 308 747 Parts Sabotaged . | . . . . Parts Stolen . | . . . . Parts Stripped . | . . . . Power Chain Reactions 5 | . . 2 3 Alert | -11 -10 -9 -8 ------- Run | Yrd Mat Mat Mat Maximum Alert Level 1 | . . . 1 Low Security (%) 93 | 100 100 100 72 Level 1 6 | . . . 27 Level 2 . | . . . . Level 3 . | . . . . Level 4 . | . . . . Level 5 . | . . . . High Security . | . . . . Max Security . | . . . . Peak Influence 342 | 10 121 57 342 Initial 27 | . . 27 4 Average 36 | . 49 13 83 Influence Increases 1066 | 10 317 287 452 Destroy 0b10 Robot/C 620 | . 260 160 200 Destroy 0b10 Robot/NC 50 | 10 5 25 10 Destroy Leader 166 | . 52 64 50 Successful Hack 14 | . . 14 . Disable Machine 45 | . . 15 30 Anti-Garrison Action 150 | . . . 150 Destroy Structure 21 | . . 9 12 Influence Decreases 838 | 10 252 340 236 Entered New Map 46 | . . 38 8 Time Decay 584 | 10 232 264 78 Lost Part 208 | . 20 38 150 Squads Dispatched 10 | . 1 4 5 Investigation 2 | . . 2 . Extermination . | . . . . Reinforcement 5 | . 1 2 2 Assault 2 | . . . 2 Garrison 1 | . . . 1 Intercept . | . . . . Searches Triggered . | . . . . Construction Impeded 2 | . . 1 1 Haulers Reinforced . | . . . . Active Scanning Responses . | . . . . Cargo Convoy Interrupts . | . . . . Stealth | -11 -10 -9 -8 --------- Run | Yrd Mat Mat Mat Distress Signals 4 | . 2 1 1 Communications Jammed . | . . . . Distress Signals . | . . . . Times Spotted 54 | . 17 14 23 Peak Tracking Total 8 | . 6 3 8 Tactical Retreats . | . . . . Traps | -11 -10 -9 -8 ------- Run | Yrd Mat Mat Mat Traps Triggered 2 | . . 2 . Indirectly . | . . . . Trap Hack Attempts . | . . . . Triggered . | . . . . Disarmed . | . . . . Reprogrammed . | . . . . Reused . | . . . . Traps Extracted . | . . . . Installed . | . . . . Triggered . | . . . . Machines | -11 -10 -9 -8 ---------- Run | Yrd Mat Mat Mat Machines Disabled 4 | . . 1 3 Max in Single Turn 2 | . . 1 2 Garrison Access 1 | . . . 1 Machines Repaired . | . . . . Machines Dismantled . | . . . . Machines Sabotaged . | . . . . Overloaded Fab Kills . | . . . . Hacking | -11 -10 -9 -8 --------- Run | Yrd Mat Mat Mat Machines Accessed 3 | . 1 2 . Terminals 3 | . 1 2 . Fabricators . | . . . . Repair Stations . | . . . . Recycling Units . | . . . . Scanalyzers . | . . . . Garrison Access . | . . . . Total Hacks 8 | . 3 5 . Successful 2 | . . 2 . Failed 6 | . 3 3 . Catastrophic 2 | . 1 1 . Database Lockouts . | . . . . Manual 8 | . 3 5 . Terminals 8 | . 3 5 . Fabricators . | . . . . Repair Stations . | . . . . Recycling Units . | . . . . Scanalyzers . | . . . . Garrison Access . | . . . . Terminal Hacks 2 | . . 2 . Prototype ID Bank 1 | . . 1 . Branch Access Points 1 | . . 1 . Fabricator Hacks . | . . . . Repair Station Hacks . | . . . . Recycling Unit Hacks . | . . . . Scanalyzer . | . . . . Garrison Access Hacks . | . . . . Unauthorized Hacks . | . . . . Terminals . | . . . . Fabricators . | . . . . Repair Stations . | . . . . Recycling Units . | . . . . Scanalyzers . | . . . . Garrison Access . | . . . . Data Cores Recovered . | . . . . Used . | . . . . Hacking Detections 2 | . 1 1 . Full Trace Events 2 | . 1 1 . Feedback Events . | . . . . Feedback Blocked . | . . . . Robot Schematics Acquired . | . . . . Robots Built . | . . . . Authchips . | . . . . Time . | . . . . Total Robot Build Rating . | . . . . Part Schematics Acquired . | . . . . Parts Built . | . . . . Authchips . | . . . . Time . | . . . . Total Part Build Rating . | . . . . Parts Repaired . | . . . . Time . | . . . . Parts Recycled . | . . . . Recycled Matter . | . . . . Retrieved Matter . | . . . . Retrieved Components . | . . . . Parts Scanalyzed . | . . . . Part Schematics Acquired . | . . . . Parts Damaged . | . . . . Bothacking | -11 -10 -9 -8 ------------ Run | Yrd Mat Mat Mat Used RIF Installer . | . . . . Robots Hacked . | . . . . Non-combat . | . . . . Combat . | . . . . Robot Hacks Applied . | . . . . Relay Couplers Released 2 | . . . 2 Machine Destruction 2 | . . . 2 Fabnet Peak Effective % . | . . . . Robots Rewired . | . . . . Allies Hacked . | . . . . Hacks Repelled . | . . . . Allies | -11 -10 -9 -8 -------- Run | Yrd Mat Mat Mat Total Allies . | . . . . Largest Group . | . . . . Highest-Rated Group . | . . . . Highest-Rated Ally . | . . . . Total Orders . | . . . . Ally Attacks . | . . . . Total Damage . | . . . . Kills . | . . . . Allies Corrupted . | . . . . Allies Melted . | . . . . Intel | -11 -10 -9 -8 ------- Run | Yrd Mat Mat Mat Active Infowar (turns) 84 | 18 66 . . Terrain 84 | 18 66 . . Robot Analysis Total . | . . . . Derelict Logs Recovered . | . . . . Drone Launches . | . . . . Drone Recoveries . | . . . . Exploration | -11 -10 -9 -8 ------------- Run | Yrd Mat Mat Mat Turns Passed 2460 | 123 569 1215 553 Spaces Moved 1406 | 75 442 699 190 Core 8 | 7 . . 1 Treads 40 | . . 28 12 Legs 389 | 68 54 125 142 Wheels . | . . . . Hover . | . . . . Flight 969 | . 388 546 35 Fastest Speed 31 | 50 37 31 50 Average Speed 141 | 113 108 146 210 Slowest Speed 520 | 120 200 520 304 Overloaded Moves . | . . . . Propulsion Burnouts . | . . . . Robots Hopped 2 | . . 2 . Potential Cave-ins . | . . . . Cave-ins Triggered . | . . . . Exploration Rate (%) 30 | 5 55 44 16 Regions Visited 3 Branch Regions . Pre-discovered Areas . | . . . . Known Exits Taken . | . . . . Unknown Exits Taken 3 | 1 1 1 . Scrap Searched . | . . . . Spaces Dug . | . . . . Terrain Destroyed 19 | . . 7 12 Melee . | . . . . Projectile . | . . . . AOE 19 | . . 7 12 Terrain Rammed . | . . . . Walls Destroyed . | . . . . Machines Disabled . | . . . . Actions | -11 -10 -9 -8 --------- Run | Yrd Mat Mat Mat Total 1706 | 95 497 837 277 Wait 113 | . 5 81 27 Move 1399 | 74 441 694 190 Hop 2 | . . 2 . Pick Up 20 | 6 9 5 . Fast Attach 33 | 7 5 14 7 Attach 14 | . 1 4 9 Detach 7 | . . 5 2 Swap 5 | . 3 1 1 Drop 20 | . 14 6 . Fire 87 | 8 19 23 37 Melee 2 | . . . 2 Ram 1 | . . 1 . Kick 3 | . . 1 2 Crush . | . . . . Escape Stasis . | . . . . Rewire . | . . . . Trap . | . . . . Miscellaneous . | . . . . Route ------- -11/Scrapyard -10/Materials -9/Materials (discovered 3 exits: [*Mat] / Min x2) -8/Materials History --------- Turn | Location | Event 2 | -11/Scrapyard | Met Revision 17 6 | -11/Scrapyard | Discovered new exit (range 15) 124 | -11/Scrapyard | Entered Materials 317 | -10/Materials | Build established: Mutant 669 | -10/Materials | Discovered new exit (range 14) 693 | -10/Materials | Entered another Materials area 693 | -9/Materials | Evolved 2 slots: Propulsion x2 1649 | -9/Materials | Discovered new exit (range 5) 1803 | -9/Materials | Identified exit to Mines 1908 | -9/Materials | Entered another Materials area 1908 | -8/Materials | Evolved 2 slots: Power x1, Weapon x1 2301 | -8/Materials | Garrison activated, responded to threat 2402 | -8/Materials | Core integrity fell below 50% 2444 | -8/Materials | System corruption reached 10% 2445 | -8/Materials | Core integrity fell below 20% 2459 | -8/Materials | Released all parts (3) 2461 | -8/Materials | Destroyed by L-31 Rogue with Katana Last Messages --------------- 02427_ Titanium Leg severed. 02431_ Hvy. EM Pulse Gun destroyed. 02436_ System corrupted: Spread Laser failed to cycle. 02441_ Spread Laser destroyed. 02442_ Imp. Assault Rifle destroyed. 02443_ Acquired Corrupted Imp. Aluminum Leg. 02443_ Integrated Corrupted Imp. Aluminum Leg (+5). 02443_ Corrupted Imp. Aluminum Leg temporarily disabled. 02446_ Acquired Titanium Leg. 02450_ Lgt. Treads destroyed. 02452_ XTUAYH/8U=#Z C FUZ8#S 02457_ Hvy. Ion Engine destroyed. 02459_ Titanium Leg destroyed. 02459_ Released Imp. Aluminum Leg. 02459_ Released Sml. Storage Unit. 02459_ Released Katana. 02460_ Acquired Katana. Map ----- +----------------------------------------------------+ | ?????????????????????????????????????????????????? | | ?????????????????????????????????????????????????? | | ?????????????????????????????????????????????????? | | ?????????????????????????????????????????????????? | | ?????????????????????????????????????????????????? | | ?????????????????????????????????????????????????? | | ?????????????????????????????????????????????????? | | ?????????????????????????????????????????????????? | | ?????????????????????????????????????????????????? | | ?????????????????????????????????????????????????? | | ?????????????????????????????????????????????????? | | ?????????????????????????????????????????????????? | | ?????????????????????????????????????????????????? | | ?????????????????????????????????????????????????? | | ?????????????????????????????????????????????????? | | ?????????????????????????????????????????????????? | | ?????????????????????????????????????????????????? | | ?????????????????????????????????????????????????? | | ?????????????????????????????????????????????????? | | ?????????????????????????????????????????????????? | | ?????????????????????????????????????????????????? | | ?????????????????????????????????????????????????? | | ?????????????????????????????????????????????????? | | ???????????????????????#########?????????????????? | | ???????????????????????#=lg #?????????????????? | | ???????????????????????#!@""" [#??#??????????????? | | ???????????????????????#bg""" [# #??????????????? | | ???????????????????????# """=[# ######+###### ? | | ???????????????????????# i==%=#*%! ^ ^ | | ???????????????????????#| ""!%[+%*! % %!! | | ???????????????????????# """!%#!= %[ % " ???? | | ???????????????????????# """!*#% ####= "G ?? | | ???????????????????????# # #????? ""?????? | | ???????????????????????# "T" # #?????????????? | | ???????????????????????# """ # #?????????????? | | ???????????????????????####### # #?????????????? | | ?????????????????????????????### #?????????????? | | ???????????????????????????????# #?????????????? | | ???????????????????????????????# #?????????????? | | ???????????????????????????????# #?????????????? | | ???????????????????????????????# #?????????????? | | ???????????????????????????????# #?????????????? | | ???????????????????????????##### #?????????????? | | ???????????????????????????#]] #?????????????? | | ???????????????????????????#]] #?????????????? | | ???????????????????????????#// #?????????????? | | ???????????????????????????#// #?????????????? | | ???????????????????????????#!! #?????????????? | | ???????????????????????????#!! #?????????????? | | ???????????????????????????##### #?????????????? | +----------------------------------------------------+ Best States ------------- Heat Dissipation 31 Energy Generation 23 Energy Capacity 460 Matter Stores 300 Matter Capacity 300 Sight Range 16 Terrain Scan Range 16 Terrain Scan Density 10 Armor Coverage 150 Evasion (%) 63 Recoil Reduction 1 Item Schematics ----------------- None Robot Schematics ------------------ None Fabricated ------------ Nothing Repaired ---------- Nothing Alien Tech Used ----------------- None Achievements -------------- None Challenges ------------ None Game ------ Seed MiniDecoyTrident Manual? 0 Play Time 00:21:38 Cumulative 11.2 hours Start 2025.05.30 @ 15:20:46 End 2025.05.30 @ 15:38:31 Sessions 1 Manual Loads 0 Difficulty Rogue Special Mode None Game No. 39 Rogue 36 Adventurer 3 Explorer 0 Win Type - Total 0 Types 0/0/0/0/0/0/0/0/0/0 Lore% 10 Gallery% 17 Achievement% 18 Wizard Run 0 Options --------- Layout 1 ASCII 0 Keyboard 1 Movement Arrows Keybinds 0 Fullscreen 1 Font 28/Smallcaps Map View 50x43 Zoom Use 0% Tactical HUD 1 Map Filters NONE Filters NONE Steam 1 RUN: 6ed91922-e7a7-467d-b07d-b5652b8486f7